[Event "*** Titled Tuesday Blitz"]
[Site "Chess.com"]
[Date "2020.04.21"]
[Round "3"]
[White "PredragNikac"]
[Black "ENEASZ"]
[Result "1/2-1/2"]
[WhiteElo "2273"]
[BlackElo "2528"]
[TimeControl "180+1"]
[EndTime "10:30:50 PDT"]
[Termination "Game drawn by repetition"]

1. d4 {[%clk 0:03:00.9]} 1... d5 {[%clk 0:02:55.6]} 2. Nc3 {[%clk 0:03:00.6]}
2... Bf5 {[%clk 0:02:49.8]} 3. f3 {[%clk 0:03:00]} 3... Nf6 {[%clk 0:02:49.3]}
4. Bg5 {[%clk 0:02:59]} 4... Nbd7 {[%clk 0:02:46.8]} 5. Nxd5 {[%clk 0:02:58.2]}
5... Nxd5 {[%clk 0:02:44.3]} 6. e4 {[%clk 0:02:58.1]} 6... h6 {[%clk 0:02:37]}
7. Bh4 {[%clk 0:02:58.1]} 7... Ne3 {[%clk 0:02:22.1]} 8. Qd3 {[%clk 0:02:57.8]}
8... Bxe4 {[%clk 0:02:22.2]} 9. Qxe4 {[%clk 0:02:55.1]} 9... Nxf1 {[%clk
0:02:17.6]} 10. Kxf1 {[%clk 0:02:56]} 10... c6 {[%clk 0:02:03.1]} 11. Nh3 {[%clk
0:02:53.8]} 11... g5 {[%clk 0:01:54.2]} 12. Bg3 {[%clk 0:02:49.2]} 12... Bg7
{[%clk 0:01:53.6]} 13. Re1 {[%clk 0:02:44.2]} 13... e6 {[%clk 0:01:53.5]} 14.
Nf2 {[%clk 0:02:37]} 14... Qa5 {[%clk 0:01:49.7]} 15. h4 {[%clk 0:02:31.5]}
15... O-O-O {[%clk 0:01:39.7]} 16. Nd3 {[%clk 0:02:21]} 16... Qd5 {[%clk
0:01:22.5]} 17. Qxd5 {[%clk 0:02:07.7]} 17... cxd5 {[%clk 0:01:23.4]} 18. c3
{[%clk 0:01:58.5]} 18... b6 {[%clk 0:01:21.1]} 19. Kf2 {[%clk 0:01:50.4]} 19...
Kb7 {[%clk 0:01:18]} 20. a4 {[%clk 0:01:48.1]} 20... Rc8 {[%clk 0:01:16.2]} 21.
h5 {[%clk 0:01:27.4]} 21... Rc4 {[%clk 0:01:13.2]} 22. Ra1 {[%clk 0:01:25.6]}
22... Rhc8 {[%clk 0:01:10.8]} 23. Bd6 {[%clk 0:01:24.5]} 23... Bf8 {[%clk
0:01:03.3]} 24. Bxf8 {[%clk 0:01:23.7]} 24... Rxf8 {[%clk 0:01:04.2]} 25. Ke3
{[%clk 0:01:23.2]} 25... a5 {[%clk 0:00:52.7]} 26. Kd2 {[%clk 0:01:23.1]} 26...
Rfc8 {[%clk 0:00:51.8]} 27. g4 {[%clk 0:01:23.3]} 27... Kc7 {[%clk 0:00:41.2]}
28. b3 {[%clk 0:01:21.2]} 28... Rc6 {[%clk 0:00:41.5]} 29. Rhf1 {[%clk
0:01:18.8]} 29... Kd6 {[%clk 0:00:30.9]} 30. Rac1 {[%clk 0:01:18]} 30... R6c7
{[%clk 0:00:28.2]} 31. f4 {[%clk 0:01:18]} 31... Nf6 {[%clk 0:00:26.9]} 32. fxg5
{[%clk 0:01:14.2]} 32... Ne4+ {[%clk 0:00:27.1]} 33. Ke3 {[%clk 0:01:10.5]}
33... Nxg5 {[%clk 0:00:27.1]} 34. Rf6 {[%clk 0:00:55.6]} 34... Rxc3 {[%clk
0:00:22.5]} 35. Rxc3 {[%clk 0:00:55.4]} 35... Rxc3 {[%clk 0:00:23.4]} 36. Rxh6
{[%clk 0:00:54.9]} 36... Rxb3 {[%clk 0:00:22]} 37. Rh8 {[%clk 0:00:52.9]} 37...
Rb1 {[%clk 0:00:22.2]} 38. Ne5 {[%clk 0:00:47.4]} 38... Rh1 {[%clk 0:00:16.9]}
39. Rd8+ {[%clk 0:00:45.5]} 39... Ke7 {[%clk 0:00:16.6]} 40. Rd7+ {[%clk
0:00:45.4]} 40... Kf6 {[%clk 0:00:16.4]} 41. Rb7 {[%clk 0:00:45]} 41... Rh3+
{[%clk 0:00:16.4]} 42. Ke2 {[%clk 0:00:44.1]} 42... Rh2+ {[%clk 0:00:16.1]} 43.
Kd3 {[%clk 0:00:42.6]} 43... Rh3+ {[%clk 0:00:15.7]} 44. Ke2 {[%clk 0:00:42.6]}
44... Rh2+ {[%clk 0:00:16]} 45. Kf1 {[%clk 0:00:43]} 45... Rb2 {[%clk
0:00:15.3]} 46. Rxb6 {[%clk 0:00:40.8]} 46... Rxb6 {[%clk 0:00:12.1]} 47. Nd7+
{[%clk 0:00:41.4]} 47... Kg7 {[%clk 0:00:12.4]} 48. Nxb6 {[%clk 0:00:42.3]}
48... Nf3 {[%clk 0:00:13.1]} 49. Nd7 {[%clk 0:00:26.6]} 49... Nxd4 {[%clk
0:00:13.2]} 50. Ne5 {[%clk 0:00:26.9]} 50... Nb3 {[%clk 0:00:11]} 51. g5 {[%clk
0:00:25.7]} 51... Nc5 {[%clk 0:00:09]} 52. h6+ {[%clk 0:00:25.9]} 52... Kg8
{[%clk 0:00:07.4]} 53. Nc6 {[%clk 0:00:18.6]} 53... Nxa4 {[%clk 0:00:06.5]} 54.
Nxa5 {[%clk 0:00:17.6]} 54... Nc5 {[%clk 0:00:06.5]} 55. Nc6 {[%clk 0:00:14.8]}
55... Ne4 {[%clk 0:00:06.6]} 56. Ne7+ {[%clk 0:00:15.1]} 56... Kh7 {[%clk
0:00:06.8]} 57. g6+ {[%clk 0:00:14.3]} 57... fxg6 {[%clk 0:00:07.7]} 58. Ke2
{[%clk 0:00:12.9]} 58... Kxh6 {[%clk 0:00:07.6]} 59. Ke3 {[%clk 0:00:13.8]}
59... Ng5 {[%clk 0:00:07.4]} 60. Kf4 {[%clk 0:00:13.7]} 60... Nf7 {[%clk
0:00:07.8]} 61. Ng8+ {[%clk 0:00:13]} 61... Kg7 {[%clk 0:00:08.3]} 62. Ne7
{[%clk 0:00:13.9]} 62... Kf6 {[%clk 0:00:08.9]} 63. Ng8+ {[%clk 0:00:13.9]}
63... Kg7 {[%clk 0:00:09.3]} 64. Ne7 {[%clk 0:00:14.5]} 64... e5+ {[%clk
0:00:09.4]} 65. Kg4 {[%clk 0:00:14.2]} 65... d4 {[%clk 0:00:09.5]} 66. Kf3
{[%clk 0:00:13]} 66... Kf6 {[%clk 0:00:09.7]} 67. Ng8+ {[%clk 0:00:13]} 67...
Ke6 {[%clk 0:00:10.1]} 68. Ke4 {[%clk 0:00:13]} 68... g5 {[%clk 0:00:10]} 69.
Kd3 {[%clk 0:00:11.3]} 69... g4 {[%clk 0:00:09.4]} 70. Ke4 {[%clk 0:00:11.2]}
70... g3 {[%clk 0:00:09.8]} 71. Kf3 {[%clk 0:00:11.4]} 71... e4+ {[%clk
0:00:09]} 72. Kxg3 {[%clk 0:00:10.9]} 72... d3 {[%clk 0:00:09.5]} 73. Kf2 {[%clk
0:00:11.1]} 73... d2 {[%clk 0:00:09.9]} 74. Ke2 {[%clk 0:00:11.3]} 74... e3
{[%clk 0:00:10.5]} 75. Kd1 {[%clk 0:00:10.1]} 75... Nd6 {[%clk 0:00:09.1]} 76.
Nh6 {[%clk 0:00:08.8]} 76... Ke5 {[%clk 0:00:07.4]} 77. Ng4+ {[%clk 0:00:03.4]}
77... Kd4 {[%clk 0:00:07.6]} 78. Ke2 {[%clk 0:00:04.1]} 78... Kc3 {[%clk
0:00:05.9]} 79. Nxe3 {[%clk 0:00:04.3]} 79... Nc4 {[%clk 0:00:05.1]} 80. Nxc4
{[%clk 0:00:03]} 80... Kc2 {[%clk 0:00:04.5]} 81. Ne3+ {[%clk 0:00:02.8]} 81...
Kc1 {[%clk 0:00:04.3]} 82. Nd1 {[%clk 0:00:03.7]} 82... Kc2 {[%clk 0:00:04.4]}
83. Ne3+ {[%clk 0:00:04.1]} 83... Kc1 {[%clk 0:00:05.3]} 84. Nd1 {[%clk
0:00:05]} 84... Kc2 {[%clk 0:00:05.9]} 85. Ne3+ {[%clk 0:00:04.8]} 1/2-1/2

[Event "*** Titled Tuesday Blitz"]
[Site "Chess.com"]
[Date "2020.04.21"]
[Round "3"]
[White "crescentmoon2411"]
[Black "MrVenky"]
[Result "1-0"]
[WhiteElo "2757"]
[BlackElo "2528"]
[TimeControl "180+1"]
[EndTime "10:30:53 PDT"]
[Termination "crescentmoon2411 won by resignation"]

1. e4 {[%clk 0:03:00.9]} 1... e5 {[%clk 0:02:58.7]} 2. Nf3 {[%clk 0:03:00.4]}
2... Nc6 {[%clk 0:02:58.4]} 3. Bc4 {[%clk 0:02:58.2]} 3... Nf6 {[%clk
0:02:57.6]} 4. d3 {[%clk 0:02:56.3]} 4... Bc5 {[%clk 0:02:56.5]} 5. O-O {[%clk
0:02:54.7]} 5... d6 {[%clk 0:02:54]} 6. c3 {[%clk 0:02:49.6]} 6... a6 {[%clk
0:02:51.1]} 7. a4 {[%clk 0:02:36.7]} 7... Ba7 {[%clk 0:02:40.4]} 8. Be3 {[%clk
0:02:33.9]} 8... O-O {[%clk 0:02:37.8]} 9. Nbd2 {[%clk 0:02:28]} 9... d5 {[%clk
0:02:37.4]} 10. exd5 {[%clk 0:02:27.9]} 10... Nxd5 {[%clk 0:02:37.4]} 11. Bxa7
{[%clk 0:02:26.4]} 11... Rxa7 {[%clk 0:02:37.5]} 12. Re1 {[%clk 0:02:25.4]}
12... Nf4 {[%clk 0:02:32.8]} 13. Nf1 {[%clk 0:02:12]} 13... Qf6 {[%clk
0:02:26.2]} 14. N3d2 {[%clk 0:01:38]} 14... Qg6 {[%clk 0:02:18.7]} 15. Ng3
{[%clk 0:01:08.8]} 15... Nxd3 {[%clk 0:02:11.7]} 16. Bxd3 {[%clk 0:01:03.3]}
16... Qxd3 {[%clk 0:02:10.5]} 17. Nge4 {[%clk 0:00:43.7]} 17... Bf5 {[%clk
0:02:03.5]} 18. Nc5 {[%clk 0:00:39.8]} 18... Qd6 {[%clk 0:01:56.4]} 19. Nde4
{[%clk 0:00:38.1]} 19... Qxd1 {[%clk 0:01:46.3]} 20. Raxd1 {[%clk 0:00:39]}
20... b6 {[%clk 0:01:46.4]} 21. Nd7 {[%clk 0:00:34]} 21... Re8 {[%clk
0:01:36.4]} 22. Ng3 {[%clk 0:00:15.5]} 22... Bc2 {[%clk 0:01:31.1]} 23. Rd2
{[%clk 0:00:15.1]} 23... Bxa4 {[%clk 0:01:31]} 24. Nxe5 {[%clk 0:00:14.8]} 24...
Nxe5 {[%clk 0:01:30]} 25. Rde2 {[%clk 0:00:13.5]} 25... f6 {[%clk 0:01:23.3]}
26. f4 {[%clk 0:00:13.7]} 26... Bb5 {[%clk 0:01:23.2]} 27. Re3 {[%clk
0:00:13.9]} 27... c5 {[%clk 0:01:21.2]} 28. fxe5 {[%clk 0:00:14.1]} 28... Rae7
{[%clk 0:01:21]} 29. e6 {[%clk 0:00:14.2]} 29... Bc4 {[%clk 0:01:20.6]} 30. Nf5
{[%clk 0:00:13.2]} 30... Rxe6 {[%clk 0:01:19.8]} 31. Kf2 {[%clk 0:00:11.7]}
31... Rxe3 {[%clk 0:01:07.8]} 32. Nxe3 {[%clk 0:00:12.6]} 32... Bb3 {[%clk
0:01:04.7]} 33. Re2 {[%clk 0:00:11.5]} 33... b5 {[%clk 0:01:02]} 34. Rd2 {[%clk
0:00:11.7]} 34... a5 {[%clk 0:00:58.2]} 35. Rd7 {[%clk 0:00:12]} 35... Rb8
{[%clk 0:00:53]} 36. Nf5 {[%clk 0:00:10]} 36... Be6 {[%clk 0:00:49.7]} 37. Ne7+
{[%clk 0:00:09.8]} 37... Kf8 {[%clk 0:00:48.4]} 38. Rc7 {[%clk 0:00:09.8]} 38...
b4 {[%clk 0:00:48.2]} 39. Nc6 {[%clk 0:00:09.9]} 39... Rb6 {[%clk 0:00:46.4]}
40. Nxa5 {[%clk 0:00:09.3]} 40... bxc3 {[%clk 0:00:46.1]} 41. bxc3 {[%clk
0:00:10.2]} 41... Rb2+ {[%clk 0:00:45.8]} 42. Kg3 {[%clk 0:00:10.6]} 42... Bd5
{[%clk 0:00:45.1]} 43. Rxc5 {[%clk 0:00:11]} 43... Rxg2+ {[%clk 0:00:44.7]} 44.
Kf4 {[%clk 0:00:11.5]} 44... Rg5 {[%clk 0:00:34.5]} 45. h4 {[%clk 0:00:10.3]}
45... Rh5 {[%clk 0:00:31.8]} 46. c4 {[%clk 0:00:09.8]} 46... Rxh4+ {[%clk
0:00:31.1]} 47. Kg3 {[%clk 0:00:09.8]} 47... Rd4 {[%clk 0:00:27.9]} 48. cxd5
{[%clk 0:00:08.3]} 48... Kf7 {[%clk 0:00:26.8]} 49. Nc4 {[%clk 0:00:07.7]} 49...
f5 {[%clk 0:00:25.4]} 50. Ne5+ {[%clk 0:00:06]} 50... Kf6 {[%clk 0:00:25]} 51.
Nf3 {[%clk 0:00:05.5]} 51... Rd1 {[%clk 0:00:24]} 52. Kf4 {[%clk 0:00:04.6]}
52... g5+ {[%clk 0:00:23.1]} 53. Nxg5 {[%clk 0:00:04.3]} 53... Rd4+ {[%clk
0:00:21.8]} 54. Ke3 {[%clk 0:00:04.5]} 54... Rd1 {[%clk 0:00:20.2]} 55. Nf3
{[%clk 0:00:04.7]} 55... Ke7 {[%clk 0:00:20.1]} 56. Ke2 {[%clk 0:00:04]} 56...
Kd6 {[%clk 0:00:19.5]} 57. Rc6+ {[%clk 0:00:04]} 57... Kxd5 {[%clk 0:00:19.7]}
58. Rf6 {[%clk 0:00:04.1]} 58... Ra1 {[%clk 0:00:18.9]} 59. Rxf5+ {[%clk
0:00:04.5]} 59... Ke4 {[%clk 0:00:19.2]} 60. Rh5 {[%clk 0:00:04.6]} 60... Ra2+
{[%clk 0:00:18.1]} 61. Nd2+ {[%clk 0:00:04.9]} 61... Kd4 {[%clk 0:00:18.4]} 62.
Rxh7 {[%clk 0:00:03.6]} 62... Kc3 {[%clk 0:00:18.7]} 63. Rc7+ {[%clk 0:00:03.7]}
63... Kd4 {[%clk 0:00:17.5]} 64. Rc4+ {[%clk 0:00:03.8]} 64... Kd5 {[%clk
0:00:17.5]} 65. Rh4 {[%clk 0:00:04.3]} 65... Ra3 {[%clk 0:00:17.3]} 66. Ne4
{[%clk 0:00:04.5]} 66... Ra2+ {[%clk 0:00:16.4]} 67. Ke3 {[%clk 0:00:05]} 67...
Ke6 {[%clk 0:00:16.1]} 68. Rh5 {[%clk 0:00:04.8]} 68... Ra3+ {[%clk 0:00:15.7]}
69. Kf4 {[%clk 0:00:05.3]} 69... Ra4 {[%clk 0:00:15.9]} 70. Rh6+ {[%clk
0:00:05.7]} 70... Kd7 {[%clk 0:00:15.9]} 71. Rd6+ {[%clk 0:00:05.9]} 71... Kc7
{[%clk 0:00:16.1]} 72. Rh6 {[%clk 0:00:06.6]} 72... Rd4 {[%clk 0:00:16.2]} 73.
Ke5 {[%clk 0:00:07]} 73... Rd1 {[%clk 0:00:16.5]} 74. Nc3 {[%clk 0:00:07.3]}
74... Rd3 {[%clk 0:00:15.3]} 75. Nd5+ {[%clk 0:00:07.2]} 75... Kb7 {[%clk
0:00:15.4]} 76. Kd6 {[%clk 0:00:07.3]} 76... Ka7 {[%clk 0:00:15.4]} 77. Rh1
{[%clk 0:00:07.2]} 77... Ka6 {[%clk 0:00:14.7]} 78. Rb1 {[%clk 0:00:07.7]} 78...
Ka5 {[%clk 0:00:14.1]} 79. Kc5 {[%clk 0:00:07.7]} 79... Ka4 {[%clk 0:00:13.1]}
80. Kc4 {[%clk 0:00:08.2]} 80... Rh3 {[%clk 0:00:12.1]} 81. Ra1+ {[%clk
0:00:07.9]} 81... Ra3 {[%clk 0:00:10.2]} 82. Nc3+ {[%clk 0:00:08.5]} 1-0

[Event "*** Titled Tuesday Blitz"]
[Site "Chess.com"]
[Date "2020.04.21"]
[Round "3"]
[White "Paralinch"]
[Black "Onwgs"]
[Result "1-0"]
[WhiteElo "2952"]
[BlackElo "2476"]
[TimeControl "180+1"]
[EndTime "10:30:54 PDT"]
[Termination "Paralinch won by resignation"]

1. e4 {[%clk 0:03:00.9]} 1... c5 {[%clk 0:02:58.4]} 2. Nf3 {[%clk 0:02:59.9]}
2... e6 {[%clk 0:02:59.1]} 3. d4 {[%clk 0:02:53.9]} 3... cxd4 {[%clk 0:03:00]}
4. Nxd4 {[%clk 0:02:54.8]} 4... a6 {[%clk 0:03:00.7]} 5. Bd3 {[%clk 0:02:54.5]}
5... Bc5 {[%clk 0:03:00.3]} 6. c3 {[%clk 0:02:53.8]} 6... Nc6 {[%clk 0:02:58.9]}
7. Be3 {[%clk 0:02:53.6]} 7... Qb6 {[%clk 0:02:51.9]} 8. Nd2 {[%clk 0:02:53.7]}
8... Qxb2 {[%clk 0:02:31.3]} 9. O-O {[%clk 0:02:52.3]} 9... Qxc3 {[%clk
0:02:30.5]} 10. N2b3 {[%clk 0:02:10.3]} 10... Bxd4 {[%clk 0:02:09.6]} 11. Rc1
{[%clk 0:02:10]} 11... Qb4 {[%clk 0:01:37.7]} 12. Nxd4 {[%clk 0:02:09.7]} 12...
Nf6 {[%clk 0:01:27]} 13. Nxc6 {[%clk 0:02:08.5]} 13... bxc6 {[%clk 0:01:26.4]}
14. Bc5 {[%clk 0:02:08.2]} 14... Qb8 {[%clk 0:01:27.1]} 15. Bc2 {[%clk
0:01:58.2]} 15... d5 {[%clk 0:01:26]} 16. Re1 {[%clk 0:01:37.6]} 16... Nd7
{[%clk 0:01:15.2]} 17. Ba3 {[%clk 0:01:34.9]} 17... c5 {[%clk 0:01:13]} 18. exd5
{[%clk 0:01:34.5]} 18... O-O {[%clk 0:01:13.3]} 19. d6 {[%clk 0:01:26.9]} 19...
Bb7 {[%clk 0:01:10.1]} 20. Ba4 {[%clk 0:01:26.3]} 20... Qc8 {[%clk 0:01:07.1]}
21. Bxd7 {[%clk 0:01:23.1]} 21... Qxd7 {[%clk 0:01:06]} 22. Rxc5 {[%clk
0:01:23.6]} 22... Rac8 {[%clk 0:01:01.6]} 23. Qd4 {[%clk 0:01:13.2]} 23... Rxc5
{[%clk 0:00:57.9]} 24. Qxc5 {[%clk 0:01:14.1]} 24... Rc8 {[%clk 0:00:58.2]} 25.
Qb6 {[%clk 0:01:14.6]} 25... h6 {[%clk 0:00:50.3]} 26. h3 {[%clk 0:01:06.6]}
26... Qc6 {[%clk 0:00:33.8]} 27. Qxc6 {[%clk 0:01:06.4]} 27... Bxc6 {[%clk
0:00:34.7]} 28. Bb4 {[%clk 0:00:53.5]} 28... Bd7 {[%clk 0:00:33]} 29. a3 {[%clk
0:00:47.7]} 29... Kf8 {[%clk 0:00:33.1]} 30. Re5 {[%clk 0:00:47.7]} 30... Ke8
{[%clk 0:00:31.5]} 31. g4 {[%clk 0:00:38.8]} 31... Bb5 {[%clk 0:00:29.3]} 32. h4
{[%clk 0:00:35.7]} 32... Kd7 {[%clk 0:00:28.3]} 33. g5 {[%clk 0:00:36]} 33...
hxg5 {[%clk 0:00:28.1]} 34. Rxg5 {[%clk 0:00:34.6]} 34... g6 {[%clk 0:00:28]}
35. h5 {[%clk 0:00:31.3]} 35... gxh5 {[%clk 0:00:28.1]} 36. Rxh5 {[%clk
0:00:32.2]} 36... Bd3 {[%clk 0:00:27.2]} 37. f3 {[%clk 0:00:28.7]} 37... Rc2
{[%clk 0:00:22.3]} 38. Rh8 {[%clk 0:00:25.8]} 38... a5 {[%clk 0:00:19]} 39. Bxa5
{[%clk 0:00:22.5]} 39... Kxd6 {[%clk 0:00:19.5]} 40. Rd8+ {[%clk 0:00:22.4]}
40... Ke5 {[%clk 0:00:17.3]} 41. Rxd3 {[%clk 0:00:23.3]} 41... Kf4 {[%clk
0:00:17.6]} 42. Bd2+ {[%clk 0:00:18]} 42... Kg3 {[%clk 0:00:17.8]} 43. f4+
{[%clk 0:00:18.6]} 43... Kg4 {[%clk 0:00:18.5]} 44. a4 {[%clk 0:00:19.1]} 44...
Ra2 {[%clk 0:00:18]} 45. a5 {[%clk 0:00:19.6]} 45... f6 {[%clk 0:00:18.6]} 46.
Kf2 {[%clk 0:00:19.5]} 46... e5 {[%clk 0:00:18.9]} 47. fxe5 {[%clk 0:00:20.4]}
47... fxe5 {[%clk 0:00:19.8]} 48. Ke2 {[%clk 0:00:20.9]} 48... Kf5 {[%clk
0:00:19.3]} 49. Rh3 {[%clk 0:00:20.4]} 49... e4 {[%clk 0:00:18.4]} 50. Rh5+
{[%clk 0:00:20]} 50... Ke6 {[%clk 0:00:17.2]} 51. Rb5 {[%clk 0:00:20]} 51... Kd6
{[%clk 0:00:16.1]} 52. Ke3 {[%clk 0:00:20.3]} 52... Kc6 {[%clk 0:00:15.3]} 53.
Rh5 {[%clk 0:00:20.5]} 53... Kd6 {[%clk 0:00:12.5]} 54. Bc3 {[%clk 0:00:19.8]}
54... Ra3 {[%clk 0:00:12.2]} 55. Kd4 {[%clk 0:00:19.3]} 55... Ra4+ {[%clk
0:00:11.3]} 56. Ke3 {[%clk 0:00:19.7]} 56... Ra3 {[%clk 0:00:11.9]} 57. Kd2
{[%clk 0:00:19.7]} 57... Ra2+ {[%clk 0:00:12.4]} 58. Kd1 {[%clk 0:00:18.5]}
58... e3 {[%clk 0:00:11.6]} 59. Rh3 {[%clk 0:00:18.1]} 59... e2+ {[%clk
0:00:09.5]} 60. Ke1 {[%clk 0:00:18.4]} 60... Kc6 {[%clk 0:00:09.3]} 61. Bd2
{[%clk 0:00:18.6]} 61... Kb7 {[%clk 0:00:06.6]} 62. Kxe2 {[%clk 0:00:17.2]}
62... Ka6 {[%clk 0:00:06.7]} 63. Rh6+ {[%clk 0:00:17.1]} 63... Kb7 {[%clk
0:00:06.8]} 64. Rb6+ {[%clk 0:00:16.5]} 64... Ka7 {[%clk 0:00:07]} 65. Rh6
{[%clk 0:00:17.4]} 65... Kb7 {[%clk 0:00:07.3]} 66. Kd3 {[%clk 0:00:17.8]} 66...
Ka7 {[%clk 0:00:07.6]} 67. Bc3 {[%clk 0:00:18.1]} 67... Kb7 {[%clk 0:00:07.7]}
68. Kc4 {[%clk 0:00:18.5]} 68... Ka7 {[%clk 0:00:07.3]} 69. Bb4 {[%clk
0:00:18.9]} 69... Rg2 {[%clk 0:00:07.3]} 70. Kb5 {[%clk 0:00:19]} 70... Rg5+
{[%clk 0:00:07.2]} 71. Bc5+ {[%clk 0:00:19.1]} 71... Kb7 {[%clk 0:00:07.8]} 72.
Rh7+ {[%clk 0:00:19.3]} 72... Ka8 {[%clk 0:00:08.2]} 73. Rh8+ {[%clk 0:00:19.8]}
73... Kb7 {[%clk 0:00:08]} 74. a6+ {[%clk 0:00:20.3]} 74... Kc7 {[%clk
0:00:08.7]} 75. a7 {[%clk 0:00:20.7]} 1-0

[Event "*** Titled Tuesday Blitz"]
[Site "Chess.com"]
[Date "2020.04.21"]
[Round "3"]
[White "chenrip"]
[Black "crywolf1986"]
[Result "1/2-1/2"]
[WhiteElo "2379"]
[BlackElo "2582"]
[TimeControl "180+1"]
[EndTime "10:30:59 PDT"]
[Termination "Game drawn by repetition"]

1. e4 {[%clk 0:03:00.9]} 1... c6 {[%clk 0:02:57.2]} 2. d4 {[%clk 0:03:00.7]}
2... d5 {[%clk 0:02:57.5]} 3. e5 {[%clk 0:03:01.2]} 3... Bf5 {[%clk 0:02:56.9]}
4. Bd3 {[%clk 0:03:01.6]} 4... Bxd3 {[%clk 0:02:56.2]} 5. Qxd3 {[%clk
0:03:02.5]} 5... e6 {[%clk 0:02:54.4]} 6. Ne2 {[%clk 0:03:02.9]} 6... Qa5+
{[%clk 0:02:54.3]} 7. c3 {[%clk 0:03:03.1]} 7... Qa6 {[%clk 0:02:54.4]} 8. Qf3
{[%clk 0:03:03.4]} 8... Nd7 {[%clk 0:02:54.1]} 9. O-O {[%clk 0:03:03.8]} 9... c5
{[%clk 0:02:54]} 10. a3 {[%clk 0:03:01.6]} 10... Ne7 {[%clk 0:02:50.2]} 11. Be3
{[%clk 0:02:58.6]} 11... Nf5 {[%clk 0:02:37]} 12. Nf4 {[%clk 0:02:56.8]} 12...
cxd4 {[%clk 0:02:29.1]} 13. cxd4 {[%clk 0:02:55.2]} 13... Ne7 {[%clk 0:02:24.1]}
14. Nc3 {[%clk 0:02:50.8]} 14... g6 {[%clk 0:02:20.1]} 15. b4 {[%clk 0:02:47.6]}
15... Bg7 {[%clk 0:02:12.2]} 16. a4 {[%clk 0:02:37]} 16... b6 {[%clk 0:02:02.4]}
17. Nb5 {[%clk 0:02:34.5]} 17... O-O {[%clk 0:01:58.7]} 18. Nc7 {[%clk
0:02:32.3]} 18... Qb7 {[%clk 0:01:58.8]} 19. Nxa8 {[%clk 0:02:32.1]} 19... Rxa8
{[%clk 0:01:59.7]} 20. Rfc1 {[%clk 0:02:26.2]} 20... Bf8 {[%clk 0:01:57.7]} 21.
Ra2 {[%clk 0:02:17.7]} 21... Rc8 {[%clk 0:01:48.4]} 22. Rac2 {[%clk 0:02:17.6]}
22... Rxc2 {[%clk 0:01:48.4]} 23. Rxc2 {[%clk 0:02:17.4]} 23... Nc6 {[%clk
0:01:43.4]} 24. b5 {[%clk 0:02:16.1]} 24... Nb4 {[%clk 0:01:43.5]} 25. Rc1
{[%clk 0:02:11.2]} 25... a5 {[%clk 0:01:38.3]} 26. h4 {[%clk 0:02:05.1]} 26...
Be7 {[%clk 0:01:36.5]} 27. h5 {[%clk 0:02:04.6]} 27... Nf8 {[%clk 0:01:33.2]}
28. Qe2 {[%clk 0:01:52.8]} 28... Qd7 {[%clk 0:01:31.8]} 29. Bd2 {[%clk
0:01:41.8]} 29... Qd8 {[%clk 0:01:30.6]} 30. Bxb4 {[%clk 0:01:37.6]} 30... Bxb4
{[%clk 0:01:31.5]} 31. Qg4 {[%clk 0:01:23.6]} 31... Ba3 {[%clk 0:01:21.8]} 32.
Rc6 {[%clk 0:01:23.2]} 32... Bb2 {[%clk 0:01:21.7]} 33. hxg6 {[%clk 0:01:06.4]}
33... Nxg6 {[%clk 0:01:17.6]} 34. Nxg6 {[%clk 0:01:05.8]} 34... hxg6 {[%clk
0:01:17.3]} 35. Qf4 {[%clk 0:00:58.7]} 35... Ba3 {[%clk 0:01:09.1]} 36. Qe3
{[%clk 0:00:51.3]} 36... Bb4 {[%clk 0:01:05.5]} 37. Qc1 {[%clk 0:00:50.5]} 37...
Kg7 {[%clk 0:01:04.9]} 38. g3 {[%clk 0:00:38.5]} 38... Qh8 {[%clk 0:00:58]} 39.
Kg2 {[%clk 0:00:37.6]} 39... Qh5 {[%clk 0:00:56.3]} 40. Qf4 {[%clk 0:00:34.8]}
40... Be7 {[%clk 0:00:53]} 41. Rc7 {[%clk 0:00:34.1]} 41... Kf8 {[%clk
0:00:52.8]} 42. Rc8+ {[%clk 0:00:28.7]} 42... Kg7 {[%clk 0:00:52.4]} 43. Rc7
{[%clk 0:00:28.7]} 43... Kf8 {[%clk 0:00:52.2]} 44. Qf3 {[%clk 0:00:27]} 44...
Qg5 {[%clk 0:00:49.6]} 45. Rb7 {[%clk 0:00:26.7]} 45... Qd2 {[%clk 0:00:46.1]}
46. Rxb6 {[%clk 0:00:26]} 46... Qxd4 {[%clk 0:00:45.6]} 47. Rb8+ {[%clk
0:00:26.4]} 47... Kg7 {[%clk 0:00:45.4]} 48. Rb7 {[%clk 0:00:26.6]} 48... Kf8
{[%clk 0:00:44.9]} 49. b6 {[%clk 0:00:26.5]} 49... Qxe5 {[%clk 0:00:44.7]} 50.
Ra7 {[%clk 0:00:22.8]} 50... Qd4 {[%clk 0:00:43.3]} 51. Ra8+ {[%clk 0:00:22]}
51... Kg7 {[%clk 0:00:43.2]} 52. b7 {[%clk 0:00:22.4]} 52... Bd6 {[%clk
0:00:42.8]} 53. b8=Q {[%clk 0:00:22.4]} 53... Bxb8 {[%clk 0:00:43.3]} 54. Rxb8
{[%clk 0:00:22.7]} 54... Qxa4 {[%clk 0:00:42.3]} 55. Rb7 {[%clk 0:00:23]} 55...
Qe4 {[%clk 0:00:42.6]} 56. Qxe4 {[%clk 0:00:22.4]} 56... dxe4 {[%clk 0:00:42.3]}
57. Ra7 {[%clk 0:00:22.6]} 57... g5 {[%clk 0:00:39]} 58. Rxa5 {[%clk 0:00:23]}
58... f5 {[%clk 0:00:39.3]} 59. Ra7+ {[%clk 0:00:22.5]} 59... Kf6 {[%clk
0:00:38.9]} 60. f4 {[%clk 0:00:22.2]} 60... exf3+ {[%clk 0:00:32.1]} 61. Kxf3
{[%clk 0:00:22.4]} 61... g4+ {[%clk 0:00:32.7]} 62. Kf4 {[%clk 0:00:21.9]} 62...
e5+ {[%clk 0:00:33.1]} 63. Ke3 {[%clk 0:00:22.4]} 63... Kg5 {[%clk 0:00:28.6]}
64. Rf7 {[%clk 0:00:21.9]} 64... Kg6 {[%clk 0:00:26.6]} 65. Rf8 {[%clk
0:00:21.6]} 65... Kg5 {[%clk 0:00:26.6]} 66. Re8 {[%clk 0:00:20]} 66... Kf6
{[%clk 0:00:26.5]} 67. Rf8+ {[%clk 0:00:20.1]} 67... Kg5 {[%clk 0:00:26]} 68.
Rg8+ {[%clk 0:00:19.1]} 68... Kf6 {[%clk 0:00:25.9]} 69. Kd3 {[%clk 0:00:19.5]}
69... Kf7 {[%clk 0:00:21.2]} 70. Rh8 {[%clk 0:00:19.5]} 70... Kg7 {[%clk
0:00:20.3]} 71. Re8 {[%clk 0:00:19.3]} 71... Kf6 {[%clk 0:00:20.4]} 72. Kc4
{[%clk 0:00:19.7]} 72... f4 {[%clk 0:00:20.5]} 73. Rf8+ {[%clk 0:00:17.9]} 73...
Kg5 {[%clk 0:00:20.5]} 74. Kd3 {[%clk 0:00:17.1]} 74... fxg3 {[%clk 0:00:18.8]}
75. Ke3 {[%clk 0:00:17.3]} 75... e4 {[%clk 0:00:16.6]} 76. Rg8+ {[%clk
0:00:15.6]} 76... Kh4 {[%clk 0:00:16.5]} 77. Kf4 {[%clk 0:00:15.9]} 77... Kh3
{[%clk 0:00:16.1]} 78. Rh8+ {[%clk 0:00:14.4]} 78... Kg2 {[%clk 0:00:15.3]} 79.
Kxg4 {[%clk 0:00:14.8]} 79... e3 {[%clk 0:00:11.3]} 80. Re8 {[%clk 0:00:14.7]}
80... Kf2 {[%clk 0:00:08.9]} 81. Rf8+ {[%clk 0:00:14.2]} 81... Kg2 {[%clk
0:00:07.6]} 82. Re8 {[%clk 0:00:11.1]} 82... Kf2 {[%clk 0:00:07.9]} 83. Rf8+
{[%clk 0:00:11.3]} 83... Kg2 {[%clk 0:00:07.8]} 84. Re8 {[%clk 0:00:11.7]}
1/2-1/2